Cogmind - Beta 13 @@@ ROGUE MODE // 2024.04.02 @ 23:13:43 Player: satan5 Result: Destroyed by as-08396 with Assembled Rifle Performance ------------- Evolutions (0) 0 Regions Visited (0) 0 Robots Destroyed (0) 0 Value Destroyed (0) 0 Prototype IDs (0) 0 Alien Tech Used (0) 0 Bonus (0) 0 TOTAL SCORE: 0 Bonus ------- None Cogmind --------- Core Integrity 0/250 Matter 220/300 Energy 100/100 System Corruption 17% Temperature Warm (151) Movement Core (50) Location -11/Scrapyard Parts ------- > --- POWER (1) -------- (None) > --- PROPULSION (2) --- (None) > --- UTILITY (2) ------ (None) > --- WEAPON (2) ------- (None) > --- INVENTORY (5) ---- Light Treads Small Storage Unit Peak State ------------ > --- POWER ------------ Light Ion Engine > --- PROPULSION ------- Aluminum Leg Aluminum Leg > --- UTILITY ---------- Small Storage Unit > --- WEAPON ----------- Light Assault Rifle Light Assault Rifle > --- INVENTORY -------- Ion Engine Light Assault Rifle [Rating: 6] Favorites ----------- Power Ion Engine Engine Ion Engine Propulsion Aluminum Leg Leg Aluminum Leg Utility Small Storage Unit Storage Small Storage Unit Weapon Light Assault Rifle Ballistic Gun Light Assault Rifle Build | -11 ------- Run | Yrd Slots Evolved . | . Power . | . Propulsion . | . Utility . | . Weapon . | . Parts Attached 9 | 9 Power 3 | 3 Engine 3 | 3 Core . | . Reactor . | . Propulsion 2 | 2 Treads . | . Leg 2 | 2 Wheel . | . Hover . | . Flight . | . Utility 1 | 1 Device . | . Storage 1 | 1 Processor . | . Hackware . | . Protection . | . Artifact . | . Weapon 3 | 3 Energy Gun . | . Energy Cannon . | . Ballistic Gun 3 | 3 Ballistic Cannon . | . Launcher . | . Special Weapon . | . Impact Weapon . | . Slashing Weapon . | . Piercing Weapon . | . Special Melee Weapon . | . Unidentified Prototypes . | . Parts Lost 7 | 7 Power 2 | 2 Propulsion 2 | 2 Utility . | . Weapon 3 | 3 Highest Loss Streak 7 | 7 To Critical Strikes . | . Average Slot Usage (%) . | . Naked Turns . | . Heaviest Build 12 | 12 Greatest Support 20 | 20 Greatest Overweight (x) 3 | 3 Average Overweight (x) 2 | 2 Largest Inventory Capacity 8 | 8 Average Capacity 6 | 6 Most Carried 4 | 4 Average Carried 2 | 2 Final Capacity 5 | 5 Final Carried 2 | 2 Class Distribution -------------------- None Dominant Class ---------------- None Resources | -11 ----------- Run | Yrd Matter Collected 197 | 197 Remotely . | . Salvage Created 11 | 11 Parts . | . Haulers Intercepted . | . Recyclers Shooed . | . Parts Field Recycled . | . Retrieved Matter . | . Parts Self-Destructed . | . Prevented . | . Kills | -11 ------- Run | Yrd Combat Hostiles Destroyed 2 | 2 Guns 2 | 2 Classes Destroyed 1 | 1 Assembled 2 | 2 Best Kill Streak 2 | 2 Combat Bots Only 2 | 2 Max Kills in Single Turn 1 | 1 Gunslinging . | . Exploded . | . Melee . | . Uniques/NPCs Destroyed . | . Combat | -11 -------- Run | Yrd Hostile Shots Fired 60 | 60 Missed 12 | 12 Damage Taken 799 | 799 Core 251 | 251 Absorbed by Shields . | . Core Remaining (%) . | . Volleys Fired 13 | 13 Largest 2 | 2 Hottest 40 | 40 Shots Fired 22 | 22 Gun 22 | 22 Cannon . | . Launcher . | . Special . | . Kinetic 22 | 22 Thermal . | . Explosive . | . Electromagnetic . | . Robot Hit Streak 4 | 4 Robot Miss Streak 4 | 4 Penetration Max . | . Secondary Targets 1 | 1 Max Gunslinging Chain 1 | 1 Shots Hit Robots 10 | 10 Core Hits 5 | 5 Critical Kills . | . Critical Parts Destroyed . | . Critical Strikes . | . Melee Attacks . | . Impact . | . Slashing . | . Piercing . | . Sneak Attacks . | . Combat Hostiles . | . Follow-up Attacks . | . Damage Inflicted 75 | 75 Guns 75 | 75 Cannons . | . Explosions . | . Melee . | . Ramming . | . Kinetic 75 | 75 Thermal . | . Explosive . | . Electromagnetic . | . Impact . | . Slashing . | . Piercing . | . Highest Corruption 17 | 17 Average Corruption 13 | 13 Corruption Purged . | . Corruption Blocked . | . Effects 3 | 3 Heat Flow Errors 2 | 2 Misdirections 1 | 1 Overload Shots . | . Overflow Damage . | . Projectiles . | . Explosions . | . Melee . | . Knockbacks . | . Impact . | . Kinetic . | . Secondary . | . Self-Inflicted Damage . | . Shots . | . Rammed . | . Targets Rammed . | . Kicked . | . Crushed . | . Highest Temperature 176 | 176 Average Temperature 78 | 78 Received Heat Transfer 80 | 80 Siege Activations . | . Robots Corrupted . | . Combat Hostiles . | . Parts Fried . | . Impact Corruptions . | . Robots Melted . | . Combat Hostiles . | . Parts Melted . | . Heat Transferred . | . Parts Sabotaged . | . Parts Stolen . | . Parts Stripped . | . Power Chain Reactions . | . Alert | -11 ------- Run | Yrd Peak Influence . | . Initial . | . Average . | . Maximum Alert Level . | . Low Security (%) 100 | 100 Level 1 . | . Level 2 . | . Level 3 . | . Level 4 . | . Level 5 . | . High Security . | . Max Security . | . Squads Dispatched . | . Investigation . | . Extermination . | . Reinforcement . | . Assault . | . Garrison . | . Intercept . | . Searches Triggered . | . Construction Impeded . | . Haulers Reinforced . | . Active Scanning Responses . | . Cargo Convoy Interrupts . | . Stealth | -11 --------- Run | Yrd Distress Signals . | . Communications Jammed . | . Distress Signals . | . Times Spotted 10 | 10 Peak Tracking Total 9 | 9 Tactical Retreats 1 | 1 Traps | -11 ------- Run | Yrd Traps Triggered . | . Indirectly . | . Trap Hack Attempts . | . Triggered . | . Disarmed . | . Reprogrammed . | . Reused . | . Traps Extracted . | . Installed . | . Triggered . | . Machines | -11 ---------- Run | Yrd Machines Disabled . | . Max in Single Turn . | . Machines Repaired . | . Machines Dismantled . | . Machines Sabotaged . | . Overloaded Fab Kills . | . Hacking | -11 --------- Run | Yrd Machines Accessed . | . Terminals . | . Fabricators . | . Repair Stations . | . Recycling Units . | . Scanalyzers . | . Garrison Access . | . Total Hacks . | . Successful . | . Failed . | . Catastrophic . | . Database Lockouts . | . Manual . | . Terminals . | . Fabricators . | . Repair Stations . | . Recycling Units . | . Scanalyzers . | . Garrison Access . | . Terminal Hacks . | . Fabricator Hacks . | . Repair Station Hacks . | . Recycling Unit Hacks . | . Scanalyzer . | . Garrison Access Hacks . | . Unauthorized Hacks . | . Terminals . | . Fabricators . | . Repair Stations . | . Recycling Units . | . Scanalyzers . | . Garrison Access . | . Data Cores Recovered . | . Used . | . Hacking Detections . | . Full Trace Events . | . Feedback Events . | . Feedback Blocked . | . Robot Schematics Acquired . | . Robots Built . | . Authchips . | . Time . | . Total Robot Build Rating . | . Part Schematics Acquired . | . Parts Built . | . Authchips . | . Time . | . Total Part Build Rating . | . Parts Repaired . | . Time . | . Parts Recycled . | . Recycled Matter . | . Retrieved Matter . | . Retrieved Components . | . Parts Scanalyzed . | . Part Schematics Acquired . | . Parts Damaged . | . Bothacking | -11 ------------ Run | Yrd Used RIF Installer . | . Robots Hacked . | . Non-combat . | . Combat . | . Robot Hacks Applied . | . Relay Couplers Released . | . Fabnet Peak Effective % . | . Robots Rewired . | . Allies Hacked . | . Hacks Repelled . | . Allies | -11 -------- Run | Yrd Total Allies . | . Largest Group . | . Highest-Rated Group . | . Highest-Rated Ally . | . Total Orders . | . Ally Attacks . | . Total Damage . | . Kills . | . Allies Corrupted . | . Allies Melted . | . Intel | -11 ------- Run | Yrd Robot Analysis Total . | . Derelict Logs Recovered . | . Drone Launches . | . Drone Recoveries . | . Exploration | -11 ------------- Run | Yrd Turns Passed 1920 | 1920 Spaces Moved 574 | 574 Core 570 | 570 Treads . | . Legs 4 | 4 Wheels . | . Hover . | . Flight . | . Fastest Speed 50 | 50 Average Speed 157 | 157 Slowest Speed 200 | 200 Overloaded Moves . | . Propulsion Burnouts . | . Robots Hopped . | . Cave-ins Triggered . | . Exploration Rate (%) 68 | 68 Regions Visited . Branch Regions . Pre-discovered Areas . | . Known Exits Taken . | . Unknown Exits Taken . | . Scrap Searched . | . Spaces Dug . | . Terrain Destroyed . | . Melee . | . Projectile . | . AOE . | . Terrain Rammed . | . Walls Destroyed . | . Machines Disabled . | . Actions | -11 --------- Run | Yrd Total 1573 | 1573 Wait 967 | 967 Move 574 | 574 Hop . | . Pick Up 9 | 9 Fast Attach . | . Attach 8 | 8 Detach 1 | 1 Swap 1 | 1 Drop . | . Fire 13 | 13 Melee . | . Ram . | . Kick . | . Crush . | . Escape Stasis . | . Rewire . | . Trap . | . Miscellaneous . | . Route ------- -11/Scrapyard (discovered 1 exit: [*Mat]) History --------- Turn | Location | Event 15 | -11/Scrapyard | Discovered new exit (range 16) 1816 | -11/Scrapyard | Assembled infested the area 1892 | -11/Scrapyard | System corruption reached 10% 1899 | -11/Scrapyard | Core integrity fell below 50% 1902 | -11/Scrapyard | Core integrity fell below 20% 1921 | -11/Scrapyard | Destroyed by as-08396 with Assembled Rifle Last Messages --------------- 01882_ Ion Engine destroyed. 01882_ System corrupted by crushing effect (+1). 01882_ as-88288 destroyed. 01882_ Switching to secondary target: as-04066. 01888_ Knocked back. 01891_ Aluminum Leg destroyed. 01891_ Lgt. Assault Rifle destroyed. 01891_ Lgt. Ion Engine destroyed. 01891_ System corrupted by crushing effect (+4). 01891_ as-19806 destroyed. 01894_ Lgt. Assault Rifle destroyed. 01894_ System corrupted by crushing effect (+4). 01894_ Knocked back. 01896_ as-04066 destroyed. 01899_ Aluminum Leg destroyed. 01904_ System corrupted: Heat flow error (+198). 01919_ System corrupted: Heat flow error (+201). 01919_ Lgt. Assault Rifle destroyed. 01920_ Acquired Lgt. Treads. Map ----- +----------------------------------------------------+ | #???????????????????????????????????????? ????? | | #???###?????????????????????????????????? ????? | | ##### ##?#??????????????????????????????? #????? | | # #???????????????????????????????? #????? | | ##### #?????????????????????????? ???? #????? | | ????# # #?????????????????????????? ???? #????? | | ????# #????????????????????????????%*????# ###### | | ?#### #???????????????????????????? ????# ## | | ? ## #?????????????????????????### ###??# ## | | # ### ########################### # ### ## | | % # | | # % | | ######################### ### ###%#### | | #?????????????????????# ## ## ## | | #####???###########???????# ## #?# ## | | ####??# #???????# ## #?# ## ### | | ##?# #???????# ## #?# | | ### #???????# ## #?# # | | ## #???????# ## #?# ?# | | ## #???????######### #####??# | | ## ##########???# #???# | | ######## # #???# #???# | | ### # #???# ##### | | ######## ### ##### | | t t | | #### k = @ ### ###### | | ???######### ## ### = ##### < ## ## | | ????????# # = #???# ## | | ????????# # #???########### | | ????????# #### ########?????????# | | ????????# #??# # #?????????# | | ????????# #??# # #?????????# | | ????????# #??# #?????????# | | ????????# #??# # #?????????# | | ????????# #??# # #?????????# | | ????????###########??# #? #?????????######### | | ???????????????####### #?######?????????????????? | | ??????????????## # #########????????????????? | | ??????????????# # # #????????????????? | | ??????????????# #????????????????? | | ??????????????# # # #????????????????? | | ??????????????# # #########????????????????? | | ??????????????# # ########?????????????????? | | ??????????????######## # #?????????????????? | | ??????????????# # # #?????????????????? | | ??????????????# # # #?????????????????? | | ??????????????# #?????????????????? | | ??????????????# # # ########??????????? | | ??????????????# # # ## ##?????????? | | ??????????????## # ######### #?????????? | +----------------------------------------------------+ Best States ------------- Heat Dissipation 25 Energy Generation 10 Energy Capacity 250 Matter Stores 257 Matter Capacity 300 Sight Range 16 Terrain Scan Density 10 Evasion (%) 50 Item Schematics ----------------- None Robot Schematics ------------------ None Fabricated ------------ Nothing Alien Tech Used ----------------- None Achievements -------------- Curiosity Killed The Cat Challenges ------------ None Game ------ Seed InertialAdvancedJammer Manual? 0 Play Time 00:08:50 Cumulative 121.5 hours Start 2024.04.02 @ 23:09:20 End 2024.04.02 @ 23:13:43 Sessions 0 Manual Loads 0 Difficulty Rogue Special Mode None Game No. 37 Rogue 23 Adventurer 14 Explorer 0 Win Type - Total 10 Types 8/0/0/1/0/0/0/0/1 Lore% 49 Gallery% 67 Achievement% 55 Wizard Run 0 Options --------- Layout 1 ASCII 0 Keyboard 0 Movement Mouse Keybinds 0 Fullscreen 1 Font 20/SmallcapsGlow Map View 50x35 Zoom Use 0% Tactical HUD 1 Map Filters NONE Filters NONE Steam 1 RUN: f4b01468-fe79-4755-9dd7-39da32522d09